bitfinex/quotes_BTCUSD_20250519
["timestamp","ask_amount","ask_price","bid_price","bid_amount"]
[1747661883066,0.21882099,102800.0,102790.0,0.20430002]
[1747661883272,0.67875812,102800.0,102790.0,0.21402849]
[1747661883650,0.21882099,102800.0,102790.0,0.23348496]
[1747661883851,0.99633136,102820.0,102810.0,0.21398629]
[1747661884078,0.98660507,102820.0,102810.0,0.2237123]
[1747661884276,0.71425023,102820.0,102810.0,0.2553123]
[1747661884489,0.72397539,102820.0,102810.0,0.2553123]
[1747661884698,0.75796741,102820.0,102810.0,0.2553123]
[1747661884867,0.74342656,102820.0,102810.0,0.2553123]
[1747661885391,0.73370093,102820.0,102810.0,0.2553123]
[1747661885566,0.71425013,102820.0,102810.0,0.6553123]
[1747661885773,0.36470007,102820.0,102810.0,0.6553123]
[1747661886043,0.36570007,102820.0,102810.0,0.6553123]
[1747661886252,0.36670007,102820.0,102810.0,0.6553123]
[1747661886454,0.38615068,102820.0,102810.0,0.6553123]
[1747661886644,0.35215922,102820.0,102810.0,0.6553123]
[1747661886858,0.35215941,102820.0,102810.0,0.6553123]
[1747661887076,0.36188429,102820.0,102810.0,0.6553123]
[1747661887284,0.002,102820.0,102810.0,0.6553123]
[1747661887431,0.002,102820.0,102810.0,1.0926217]
[1747661887924,0.002,102820.0,102810.0,1.10698666]
[1747661888328,0.001,102820.0,102810.0,1.10698666]
[1747661888881,0.02426384,102840.0,102830.0,0.25616898]
[1747661889083,0.03413155,102840.0,102830.0,0.25616898]
[1747661889285,0.03413136,102840.0,102830.0,0.25616898]
[1747661889515,0.04385473,102840.0,102830.0,0.65616898]
[1747661889727,0.38428898,102840.0,102830.0,0.65616898]
[1747661889939,0.36974803,102840.0,102830.0,0.65616898]
[1747661890080,0.35030158,102840.0,102830.0,0.65616898]
[1747661890291,0.38047205,102840.0,102830.0,0.65616898]
[1747661890736,0.40473664,102840.0,102830.0,0.65616898]
[1747661890959,0.5894905,102840.0,102830.0,0.63054486]
[1747661891174,0.39501365,102840.0,102830.0,0.6499932]
[1747661891320,0.5894905,102840.0,102830.0,0.63054486]
[1747661891517,0.5894905,102840.0,102830.0,0.64999339]
[1747661891741,0.39601365,102840.0,102830.0,0.65971751]
[1747661891942,0.60021434,102840.0,102830.0,0.65606837]
[1747661892179,1.00878752,102840.0,102830.0,0.00607498]
[1747661892378,1.31900752,102840.0,102830.0,0.00607498]
[1747661892779,1.31800752,102840.0,102830.0,0.00607498]
[1747661892982,1.31800752,102840.0,102830.0,0.01281219]
[1747661893937,0.23823158,102820.0,102810.0,0.21398575]
[1747661894146,0.57866583,102820.0,102810.0,0.22006174]
[1747661894346,0.57866583,102820.0,102810.0,0.22978804]
[1747661894503,0.57866583,102820.0,102810.0,0.23951424]
[1747661894707,0.57866583,102820.0,102810.0,0.25597052]
[1747661895009,0.58839156,102820.0,102810.0,0.25597052]
[1747661895418,0.24795731,102820.0,102810.0,0.25897052]
[1747661895643,0.58839156,102820.0,102810.0,0.25897052]
[1747661895839,0.57866593,102820.0,102810.0,0.25897052]
[1747661896020,0.57866593,102820.0,102810.0,0.26297052]
[1747661896221,0.57866593,102820.0,102810.0,0.66297052]
[1747661896823,0.58839156,102820.0,102810.0,0.66297052]
[1747661897659,0.57866649,102820.0,102810.0,0.63379191]
[1747661897870,0.57866649,102820.0,102810.0,0.64351821]
[1747661898196,0.55921551,102820.0,102810.0,0.41980616]
[1747661898383,0.55921551,102820.0,102810.0,0.01980616]
[1747661898384,0.88992403,102820.0,102810.0,0.01980616]
[1747661898584,1.00323343,102820.0,102810.0,0.01373017]
[1747661898819,1.01973343,102820.0,102810.0,0.007]
[1747661899213,0.64679918,102820.0,102810.0,0.004]
[1747661899370,0.92127918,102820.0,102810.0,0.1945336]
[1747661899570,0.92127918,102820.0,102810.0,0.003]
[1747661900354,0.92127918,102820.0,102810.0,0.01007672]
[1747661900754,0.51211158,102820.0,102810.0,0.2337895]
[1747661900961,0.64830514,102820.0,102810.0,0.24351589]
[1747661901218,0.29814582,102820.0,102810.0,0.2815419]
[1747661901443,0.83634247,102830.0,102820.0,0.22369102]
[1747661901444,0.64184335,102830.0,102820.0,0.22369102]
[1747661901694,1.10178264,102840.0,102830.0,0.20422054]
[1747661901922,0.76134839,102840.0,102830.0,0.20422054]
[1747661902153,1.09205909,102840.0,102830.0,0.00972478]
[1747661902376,0.75162484,102840.0,102830.0,0.20422054]
[1747661902585,0.75162484,102840.0,102830.0,0.26569376]
[1747661902586,0.00014434,102840.0,102830.0,0.26569376]
[1747661902789,0.01959051,102840.0,102830.0,0.26569376]
[1747661902993,0.01086733,102840.0,102830.0,0.26569376]
[1747661903201,0.03031406,102840.0,102830.0,0.26569376]
[1747661903410,0.00114434,102840.0,102830.0,0.27176893]
[1747661903612,0.02059051,102840.0,102830.0,0.27176893]
[1747661903815,0.01959051,102840.0,102830.0,0.27176893]
[1747661904232,0.00986733,102840.0,102830.0,0.27176893]
[1747661904499,0.00014434,102840.0,102830.0,0.27176893]
[1747661904733,0.00014434,102840.0,102830.0,0.36907833]
[1747661905005,0.00014434,102840.0,102830.0,0.44739837]
[1747661905227,0.00014434,102840.0,102830.0,0.4541034]
[1747661905440,0.00114434,102840.0,102830.0,0.71578336]
[1747661905672,0.00114434,102840.0,102830.0,0.7813232]
[1747661905908,0.00114434,102840.0,102830.0,1.0561632]
[1747661906378,0.00014434,102840.0,102830.0,1.0561632]
[1747661906618,0.00014434,102840.0,102830.0,1.4651632]
[1747661906840,0.0153607,102850.0,102840.0,0.25464723]
[1747661907060,0.01540879,102850.0,102840.0,0.35195663]
[1747661907523,0.01540879,102850.0,102840.0,1.18518063]
[1747661907737,0.01540879,102850.0,102840.0,1.53518063]
[1747661907956,0.01540879,102850.0,102840.0,1.49840563]
[1747661908180,0.01540879,102850.0,102840.0,1.45768563]
[1747661908420,0.01540879,102850.0,102840.0,1.01898163]
[1747661908647,0.00940879,102850.0,102840.0,0.70195663]
[1747661909168,0.00940879,102850.0,102840.0,0.94709563]
[1747661909626,0.00940879,102850.0,102840.0,1.13601463]
[1747661909846,0.00940879,102850.0,102840.0,1.12441463]
[1747661910074,0.00940879,102850.0,102840.0,0.70195663]
[1747661910296,0.00940879,102850.0,102840.0,0.71195663]
[1747661910504,0.00971977,102880.0,102870.0,0.22358201]
[1747661910719,0.01992009,102880.0,102870.0,0.23330226]
[1747661911595,0.0199198,102880.0,102870.0,0.23330226]
[1747661911805,0.01944096,102870.0,102860.0,0.59388656]
[1747661912013,0.00972034,102870.0,102860.0,0.55386546]
[1747661912220,0.00972034,102870.0,102860.0,0.57016546]
[1747661912435,0.00972034,102870.0,102860.0,0.58556546]
[1747661912711,0.03546103,102880.0,102870.0,0.22358182]
[1747661912921,0.03446056,102880.0,102870.0,0.22358182]
[1747661913130,0.04418024,102880.0,102870.0,0.22458182]
[1747661913558,0.51284691,102880.0,102870.0,0.21386148]
[1747661913758,0.05390011,102880.0,102870.0,0.22358182]
[1747661913961,0.51284681,102880.0,102870.0,0.22358182]
[1747661914162,0.05390011,102880.0,102870.0,0.22358182]
[1747661914576,0.06362007,102880.0,102870.0,0.22358182]
[1747661914780,0.03446047,102880.0,102870.0,0.22358182]
[1747661914979,0.00148101,102880.0,102870.0,0.25588182]
[1747661915218,0.00148101,102880.0,102870.0,0.35319122]
[1747661915418,0.00148101,102880.0,102870.0,0.75419122]
[1747661915826,0.4798667,102880.0,102870.0,0.75419122]
[1747661916031,0.46042762,102880.0,102870.0,0.75419122]
[1747661916162,0.00148101,102880.0,102870.0,0.75419122]
[1747661917704,0.01120022,102880.0,102870.0,0.75419122]
[1747661918097,0.47014683,102880.0,102870.0,0.75419122]
[1747661918341,1.17975577,102880.0,102870.0,0.001]
[1747661918656,0.72080916,102880.0,102870.0,0.001]
[1747661918864,1.00296916,102880.0,102870.0,0.001]
[1747661919642,0.97096916,102880.0,102870.0,0.20514105]
[1747661919837,0.77656792,102880.0,102870.0,0.20514105]
[1747661920211,0.04518061,102880.0,102870.0,0.22458201]
[1747661920420,0.51384718,102880.0,102870.0,0.22458201]
[1747661920594,0.50412722,102880.0,102870.0,0.23430254]
[1747661920830,0.51384718,102880.0,102870.0,0.26650254]
[1747661921228,0.52356724,102880.0,102870.0,0.26650254]
[1747661921432,0.70824918,102880.0,102870.0,0.20514105]
[1747661921626,0.49440792,102880.0,102870.0,0.23430282]
[1747661921840,0.50412712,102880.0,102870.0,0.23430282]
[1747661922041,0.04518051,102880.0,102870.0,0.23430282]
[1747661922217,0.02574116,102880.0,102870.0,0.26490282]
[1747661922429,0.03546065,102880.0,102870.0,0.66490282]
[1747661922596,0.04518033,102880.0,102870.0,0.66490282]
[1747661922799,0.0549002,102880.0,102870.0,0.63430282]
[1747661923019,0.70824881,102880.0,102870.0,0.61486186]
[1747661923241,0.70824881,102880.0,102870.0,0.63430302]
[1747661924387,0.70824881,102880.0,102870.0,0.001]
[1747661924388,0.68880964,102880.0,102870.0,0.001]
[1747661925029,0.68880964,102880.0,102870.0,0.20514105]
[1747661925459,0.50412798,102880.0,102870.0,0.23430283]
[1747661925672,0.69852922,102880.0,102870.0,0.23430283]
[1747661925876,0.49440735,102880.0,102870.0,0.24257674]
[1747661926085,0.03546065,102880.0,102870.0,0.24257674]
[1747661926291,0.04518033,102880.0,102870.0,0.24257674]
[1747661926499,0.0549002,102880.0,102870.0,0.24257674]
[1747661926883,0.51384681,102880.0,102870.0,0.24257674]
[1747661927093,0.50412694,102880.0,102870.0,0.24257674]
[1747661927389,0.51384681,102880.0,102870.0,0.24257674]
[1747661927833,0.52356677,102880.0,102870.0,0.24257674]
[1747661928236,0.51384681,102880.0,102870.0,0.24257674]
[1747661928449,0.70824805,102880.0,102870.0,0.61341543]
[1747661928671,0.21384107,102880.0,102870.0,0.63285649]
[1747661928877,0.67278768,102880.0,102870.0,0.63285649]
[1747661929087,0.01943879,102880.0,102870.0,0.64257683]
[1747661929495,0.02915856,102880.0,102870.0,0.64257683]
[1747661929706,0.35945248,102880.0,102870.0,0.67337683]
[1747661929938,0.21379893,102900.0,102890.0,0.20410146]
[1747661930130,0.0291561,102890.0,102880.0,0.2138083]
[1747661930338,0.01943681,102890.0,102880.0,0.2138083]
[1747661930548,0.23337904,102900.0,102890.0,0.21382038]
[1747661930755,0.23337904,102900.0,102890.0,0.22353911]
[1747661930756,0.58793339,102900.0,102890.0,0.22353911]
[1747661930963,0.57821588,102900.0,102890.0,0.21382038]
[1747661931386,0.58221588,102900.0,102890.0,0.21382038]
[1747661931542,0.58221588,102900.0,102890.0,0.22353921]
[1747661931859,0.57249809,102900.0,102890.0,0.22353921]
[1747661931983,0.57249809,102900.0,102890.0,0.23883921]
[1747661932189,0.57249809,102900.0,102890.0,0.22912038]
[1747661932415,0.57249809,102900.0,102890.0,0.22353911]
[1747661932622,0.01486156,102900.0,102890.0,0.26435756]
[1747661932890,0.04301465,102900.0,102890.0,0.26435756]
[1747661933090,0.2333781,102900.0,102890.0,0.24492038]
[1747661933301,0.02929733,102900.0,102890.0,0.26435756]
[1747661933505,0.01957935,102900.0,102890.0,0.26435756]
[1747661933736,0.02929733,102900.0,102890.0,0.26435756]
[1747661933941,0.57339254,102900.0,102890.0,0.23325766]
[1747661934146,0.57339254,102900.0,102890.0,0.63325766]
[1747661934352,0.24309702,102900.0,102890.0,0.63325766]
[1747661934559,0.02929733,102900.0,102890.0,0.64297611]
[1747661935489,0.0390154,102900.0,102890.0,0.64297611]
[1747661935766,0.0390154,102900.0,102890.0,0.67457611]
[1747661935971,0.23337885,102900.0,102890.0,0.62353911]
[1747661936826,0.23337885,102900.0,102890.0,0.66485775]
[1747661937033,0.57339254,102900.0,102890.0,0.66485775]
[1747661937657,0.23337885,102900.0,102890.0,0.66485775]
[1747661937873,0.57339254,102900.0,102890.0,0.64925775]
[1747661938503,0.23337885,102900.0,102890.0,0.64925775]
[1747661938716,0.37902909,102900.0,102890.0,0.6589763]
[1747661938931,0.58311071,102900.0,102890.0,0.6745763]
[1747661939058,0.37902909,102900.0,102890.0,0.2745763]
[1747661939280,0.00986165,102900.0,102890.0,0.27457564]
[1747661939510,0.00986156,102900.0,102890.0,0.67457564]
[1747661939724,0.00014424,102900.0,102890.0,0.77188504]
[1747661940142,0.00986165,102900.0,102890.0,0.77188504]
[1747661940352,0.01957925,102900.0,102890.0,0.77188504]
[1747661940582,0.37902889,102900.0,102890.0,0.77188504]
[1747661940776,0.36931082,102900.0,102890.0,0.77188504]
[1747661940977,0.02929704,102900.0,102890.0,0.77188504]
[1747661941136,0.02929704,102900.0,102890.0,0.67457564]
[1747661941347,0.03901502,102900.0,102890.0,0.67457564]
[1747661941583,0.00986165,102900.0,102890.0,0.67457564]
[1747661941785,0.00014424,102900.0,102890.0,0.67457564]
[1747661941999,0.00014424,102900.0,102890.0,0.77188504]
[1747661942287,0.00986165,102900.0,102890.0,0.77188504]
[1747661942492,0.00014424,102900.0,102890.0,0.77188504]
[1747661942689,0.00986165,102900.0,102890.0,0.37188504]
[1747661942889,0.00014424,102900.0,102890.0,0.37188504]
[1747661943294,0.00986165,102900.0,102890.0,0.77188504]
[1747661943766,0.00014424,102900.0,102890.0,1.11188504]
[1747661945556,0.00014424,102900.0,102890.0,1.39044504]
[1747661945777,0.005,102910.0,102900.0,0.23991682]
[1747661945966,0.005,102910.0,102900.0,0.35302622]
[1747661946994,0.005,102910.0,102900.0,1.09302622]
[1747661947433,0.008,102910.0,102900.0,1.10302622]
[1747661947854,0.00620345,102950.0,102940.0,0.25392997]
[1747661948064,0.00634767,102950.0,102940.0,0.25392997]
[1747661948504,0.01606027,102950.0,102940.0,0.25392997]
[1747661948733,0.00634767,102950.0,102940.0,0.35123937]
[1747661949145,0.00634767,102950.0,102940.0,1.09123937]
[1747661949770,0.00634767,102950.0,102940.0,1.09731213]
[1747661950216,0.00634767,102950.0,102940.0,1.12489631]
[1747661950414,0.00634767,102950.0,102940.0,1.0973063]
[1747661950677,0.00734767,102950.0,102940.0,1.1073063]
[1747661951060,0.00734767,102950.0,102940.0,1.11399383]
[1747661951266,0.00034767,102950.0,102940.0,1.11399383]
[1747661951459,0.00034767,102950.0,102940.0,1.13476364]
[1747661951904,0.00034767,102950.0,102940.0,1.96594349]
[1747661952531,0.00034767,102950.0,102940.0,1.95140264]
[1747661952756,0.00034767,102950.0,102940.0,1.13076364]
[1747661952961,0.00034767,102950.0,102940.0,1.14076364]
[1747661953849,0.00034767,102950.0,102940.0,1.72972364]
[1747661954056,0.0153607,102960.0,102950.0,0.25600827]
[1747661954260,0.0153607,102960.0,102950.0,0.35331767]
[1747661954720,0.0153607,102960.0,102950.0,0.76607213]
[1747661955326,0.0153607,102960.0,102950.0,1.10907213]
[1747661956077,0.0153607,102960.0,102950.0,1.11307213]
[1747661956278,0.0153607,102960.0,102950.0,1.70315213]
[1747661958397,0.0153607,102960.0,102950.0,1.11307213]
[1747661958609,0.0153607,102960.0,102950.0,1.70171213]
[1747661960133,0.0093607,102960.0,102950.0,1.70171213]
[1747661960714,0.0093607,102960.0,102950.0,1.40715213]
[1747661960970,0.0093607,102960.0,102950.0,1.40711213]
[1747661961172,0.0093607,102960.0,102950.0,1.70047213]
[1747661961820,0.0093607,102960.0,102950.0,1.11307213]
[1747661962045,0.0093607,102960.0,102950.0,1.69979213]
[1747661962693,0.0093607,102960.0,102950.0,1.11307213]
[1747661962903,0.0093607,102960.0,102950.0,1.69963213]
[1747661964287,0.0093607,102960.0,102950.0,2.11895213]
[1747661964929,0.0093607,102960.0,102950.0,1.53239213]
[1747661965173,0.0093607,102960.0,102950.0,1.47033213]
[1747661965391,0.0093607,102960.0,102950.0,1.45383213]
[1747661966941,0.0093607,102960.0,102950.0,1.19149213]
[1747661967824,0.0033607,102960.0,102950.0,1.19149213]
[1747661968662,0.0033607,102960.0,102950.0,1.53149213]
[1747661969138,6e-05,102970.0,102960.0,0.25558657]
[1747661969359,6e-05,102970.0,102960.0,0.35289597]
[1747661969860,6e-05,102970.0,102960.0,0.3589629]
[1747661970067,6e-05,102970.0,102960.0,0.7589629]
[1747661970503,6e-05,102970.0,102960.0,0.7599629]
[1747661970709,6e-05,102970.0,102960.0,0.7619629]
[1747661970917,6e-05,102970.0,102960.0,0.76865043]
[1747661972167,6e-05,102970.0,102960.0,0.75225043]
[1747661972398,6e-05,102970.0,102960.0,0.73645043]
[1747661972636,0.37589615,102970.0,102960.0,0.41575446]
[1747661972859,0.24621378,102970.0,102960.0,0.41575446]
[1747661973075,0.58622747,102970.0,102960.0,0.41575446]
[1747661973294,0.58622747,102970.0,102960.0,0.41575516]
[1747661973518,0.58622747,102970.0,102960.0,0.01575516]
[1747661973519,0.68353687,102970.0,102960.0,0.01575516]
[1747661973946,0.34352318,102970.0,102960.0,0.01575516]
[1747661974173,0.68353687,102970.0,102960.0,0.00906763]
[1747661974394,0.34352318,102970.0,102960.0,0.00906763]
[1747661974627,0.68353687,102970.0,102960.0,0.00906763]
[1747661975538,0.68353687,102970.0,102960.0,0.00706763]
[1747661975752,0.68353687,102970.0,102960.0,0.00606763]
[1747661976010,0.68353687,102970.0,102960.0,0.01377034]
[1747661977313,0.34352318,102970.0,102960.0,0.20802053]
[1747661977495,0.67382578,102970.0,102960.0,0.01377034]
[1747661978186,0.67382578,102970.0,102960.0,0.01377073]
[1747661979262,0.33381209,102970.0,102960.0,0.01377073]
[1747661979471,0.67382578,102970.0,102960.0,0.01377073]
[1747661979797,0.33381209,102970.0,102960.0,0.01377073]
[1747661980014,0.25592525,102970.0,102960.0,0.3057655]
[1747661980218,0.23313606,102970.0,102960.0,0.3057655]
[1747661980411,0.22342525,102970.0,102960.0,0.30576559]
[1747661980637,0.22342525,102970.0,102960.0,0.30576569]
[1747661980638,0.23902525,102970.0,102960.0,0.30576569]
[1747661980841,0.23902525,102970.0,102960.0,0.31547791]
[1747661981040,0.24591416,102970.0,102960.0,0.29605328]
[1747661981505,0.24591416,102970.0,102960.0,0.22744546]
[1747661981892,0.24591416,102970.0,102960.0,0.21773333]
[1747661982118,0.24591416,102970.0,102960.0,0.23715768]
[1747661982245,0.21371416,102970.0,102960.0,0.23045497]
[1747661982449,0.21371416,102970.0,102960.0,0.64688229]
[1747661983352,0.21371416,102970.0,102960.0,0.64081427]
[1747661983495,0.21371416,102970.0,102960.0,0.63716959]
[1747661983711,0.22951416,102970.0,102960.0,0.63716959]
[1747661983905,0.22951416,102970.0,102960.0,0.62745746]
[1747661984106,0.22951416,102970.0,102960.0,0.63716959]
[1747661984329,0.21371416,102970.0,102960.0,0.64688162]
[1747661984537,0.22342572,102970.0,102960.0,0.64688162]
[1747661984795,0.01948284,102970.0,102960.0,0.65659356]
[1747661985054,0.22342572,102970.0,102960.0,0.63716921]
[1747661985256,0.22342572,102970.0,102960.0,0.62745718]
[1747661985666,0.22342572,102970.0,102960.0,0.22745718]
[1747661985870,0.22342572,102970.0,102960.0,0.23716921]
[1747661986007,0.0291944,102970.0,102960.0,0.24688105]
[1747661986209,0.22342572,102970.0,102960.0,0.64688105]
[1747661987002,0.22342572,102970.0,102960.0,0.63716921]
[1747661987209,0.22342572,102970.0,102960.0,0.64688115]
[1747661987422,0.22342572,102970.0,102960.0,0.63716921]
[1747661987612,0.22991435,102970.0,102960.0,0.01378264]
[1747661987816,0.24611435,102970.0,102960.0,0.01378264]
[1747661988869,0.69797829,102970.0,102960.0,0.01378264]
[1747661989250,0.3579646,102970.0,102960.0,0.01378264]
[1747661989461,0.69797829,102970.0,102960.0,0.01378264]
[1747661989749,0.3579646,102970.0,102960.0,0.01378264]
[1747661989957,0.24611435,102970.0,102960.0,0.01378264]
[1747661990141,0.24611435,102970.0,102960.0,0.01278264]
[1747661990714,0.00977118,102970.0,102960.0,0.23616921]
[1747661990918,0.02919345,102970.0,102960.0,0.23616921]
[1747661991097,0.00977081,102970.0,102960.0,0.23616921]
[1747661991297,0.00977081,102970.0,102960.0,0.26015392]
[1747661991526,0.00977081,102970.0,102960.0,0.26687162]
[1747661991926,0.02919289,102970.0,102960.0,0.26687162]
[1747661992131,0.02919289,102970.0,102960.0,0.23617162]
[1747661992546,0.22342534,102970.0,102960.0,0.61674765]
[1747661992791,0.58612785,102970.0,102960.0,0.01378505]
[1747661993204,0.24611416,102970.0,102960.0,0.01378505]
[1747661993800,0.35796441,102970.0,102960.0,0.01378505]
[1747661993973,0.35796441,102970.0,102960.0,0.0077177]
[1747661994173,0.6979781,102970.0,102960.0,0.0137853]
[1747661994628,0.35796441,102970.0,102960.0,0.0137853]
[1747661994871,0.6979781,102970.0,102960.0,0.0137853]
[1747661995262,0.35796441,102970.0,102960.0,0.0137853]
[1747661995498,0.35796441,102970.0,102960.0,0.0127853]
[1747661995706,0.35896441,102970.0,102960.0,0.0127853]
[1747661996314,0.35896441,102970.0,102960.0,0.01278586]
[1747661996728,0.6989781,102970.0,102960.0,0.01278586]
[1747661996930,0.35896441,102970.0,102960.0,0.01278586]
[1747661997351,0.35896441,102970.0,102960.0,0.0067177]
[1747661997539,0.35896441,102970.0,102960.0,0.01278568]
[1747662000690,0.6989781,102970.0,102960.0,0.01278568]
[1747662000899,1.0389781,102970.0,102960.0,0.01278568]
[1747662001103,0.83889836,102970.0,102960.0,0.0067177]
[1747662001337,1.03312968,102970.0,102960.0,0.0067177]
[1747662001762,0.21371605,102940.0,102930.0,0.08962716]
[1747662001972,0.21371605,102940.0,102930.0,0.07846426]
[1747662002199,0.3255663,102940.0,102930.0,0.07846426]
[1747662002392,0.31102545,102940.0,102930.0,0.2855692]
[1747662002612,0.01942756,102940.0,102930.0,0.31471436]
[1747662002818,0.00971364,102940.0,102930.0,0.35682903]
[1747662002994,0.02914176,102940.0,102930.0,0.35682903]
[1747662003163,0.02914176,102940.0,102930.0,0.35782903]
[1747662003379,0.02914167,102940.0,102930.0,0.35782903]
[1747662004285,0.01942756,102940.0,102930.0,0.35782903]
[1747662004485,0.02914157,102940.0,102930.0,0.35782903]
[1747662004891,0.03885587,102940.0,102930.0,0.27950899]
[1747662005136,0.24285819,102940.0,102930.0,0.22767955]
[1747662005347,0.21371662,102940.0,102930.0,0.01394235]
[1747662005556,0.21371662,102940.0,102930.0,0.2179644]
[1747662005780,0.21371662,102940.0,102930.0,0.21796431]
[1747662005991,0.20400232,102940.0,102930.0,0.2179644]
[1747662006206,0.19428604,102950.0,102940.0,0.19428793]
[1747662006408,0.19428604,102950.0,102940.0,0.00971439]
[1747662006621,0.19428604,102950.0,102940.0,0.20708606]
[1747662006836,0.67674998,102950.0,102940.0,0.01279813]
[1747662007045,0.33673629,102950.0,102940.0,0.01279813]
[1747662007735,0.67674998,102950.0,102940.0,0.01279813]
[1747662008350,0.67774998,102950.0,102940.0,0.01279813]
[1747662008767,0.67874998,102950.0,102940.0,0.01279813]
[1747662009246,1.01874998,102950.0,102940.0,0.01279813]
[1747662009483,0.23620213,102940.0,102930.0,0.00014422]
[1747662009752,0.67352522,102940.0,102930.0,0.00014422]
[1747662009953,0.60867153,102940.0,102930.0,0.00014422]
[1747662010584,0.94868522,102940.0,102930.0,0.00014422]
[1747662010792,1.28868522,102940.0,102930.0,0.00621418]
[1747662011209,1.28868522,102940.0,102930.0,0.00014422]
[1747662011419,0.94867153,102940.0,102930.0,0.00014422]
[1747662011843,0.94867153,102940.0,102930.0,0.00114422]
[1747662012055,1.28868522,102940.0,102930.0,0.00014422]
[1747662012469,1.29068522,102940.0,102930.0,0.00014422]
[1747662013145,0.95067153,102940.0,102930.0,0.00014422]
[1747662014758,1.29068522,102940.0,102930.0,0.00014422]
[1747662015179,0.95067153,102940.0,102930.0,0.00014422]
[1747662015400,1.29068522,102940.0,102930.0,0.00014422]
[1747662015600,0.95067153,102940.0,102930.0,0.00014422]
[1747662016811,1.29068522,102940.0,102930.0,0.00014422]
[1747662017013,0.95067153,102940.0,102930.0,0.00014422]
[1747662018453,0.30331153,102940.0,102930.0,0.00014422]
[1747662019118,0.30331153,102940.0,102930.0,0.00621421]
[1747662020674,0.65922522,102940.0,102930.0,0.00621421]
[1747662020876,1.02906607,102940.0,102930.0,0.00621421]
[1747662021055,1.57922607,102940.0,102930.0,0.00621421]
[1747662021260,1.02906607,102940.0,102930.0,0.00014422]
[1747662021431,1.57910607,102940.0,102930.0,0.00014422]
[1747662021634,1.57810607,102940.0,102930.0,0.00014422]
[1747662021838,1.57678607,102940.0,102930.0,0.00014422]
[1747662022041,1.30078607,102940.0,102930.0,0.00014422]
[1747662022207,0.69005238,102940.0,102930.0,0.00014422]
[1747662022425,0.93081238,102940.0,102930.0,0.00014422]
[1747662022648,0.93281238,102940.0,102930.0,0.00014422]
[1747662022919,0.66085238,102940.0,102930.0,0.00621407]
[1747662023676,0.65785238,102940.0,102930.0,0.00621407]
[1747662024121,0.66185238,102940.0,102930.0,0.00621407]
[1747662024471,0.66185238,102940.0,102930.0,0.40621407]
[1747662024672,0.30731153,102940.0,102930.0,0.64163622]
[1747662024884,0.02542831,102940.0,102930.0,0.67078147]
[1747662025093,0.23914493,102940.0,102930.0,0.6872087]
[1747662025295,0.23914493,102940.0,102930.0,0.67749393]
[1747662025536,0.21971662,102940.0,102930.0,0.67749412]
[1747662025758,0.21571662,102940.0,102930.0,0.67749412]
[1747662025978,0.21371662,102940.0,102930.0,0.67749412]
[1747662026187,0.20400232,102940.0,102930.0,0.64834868]
[1747662026397,0.20500232,102940.0,102930.0,0.65806383]
[1747662026607,0.20500232,102940.0,102930.0,0.66777879]
[1747662027165,0.20700232,102940.0,102930.0,0.65806383]
[1747662027375,0.20700232,102940.0,102930.0,0.66777888]
[1747662027548,0.20700232,102940.0,102930.0,0.26777888]
[1747662028009,0.20700232,102940.0,102930.0,0.66777888]
[1747662028415,0.21671643,102940.0,102930.0,0.67749384]
[1747662028836,0.21671643,102940.0,102930.0,0.6872087]
[1747662028996,0.03214138,102940.0,102930.0,0.68720803]
[1747662029194,0.24585781,102940.0,102930.0,0.67749336]
[1747662029411,0.22643044,102940.0,102930.0,0.6677785]
[1747662029617,0.21671643,102940.0,102930.0,0.65806354]
[1747662030496,0.20700223,102940.0,102930.0,0.65806354]
[1747662030914,0.20700223,102940.0,102930.0,0.6677784]
[1747662031069,0.20700223,102940.0,102930.0,0.65806354]
[1747662031553,0.22154308,102940.0,102930.0,0.64834849]
[1747662031669,0.21182878,102940.0,102930.0,0.64834868]
[1747662031871,0.21182878,102940.0,102930.0,0.42822653]
[1747662032159,0.98915187,102940.0,102930.0,0.41292653]
[1747662032377,1.02205187,102940.0,102930.0,0.01292653]
[1747662032749,1.02205187,102940.0,102930.0,0.00621407]
[1747662033201,0.68203818,102940.0,102930.0,0.00014422]
[1747662033680,1.02205187,102940.0,102930.0,0.00014422]
[1747662033879,1.02205187,102940.0,102930.0,0.00621459]
[1747662036106,1.03191503,102940.0,102930.0,0.00621459]
[1747662036471,1.30199503,102940.0,102930.0,0.00014422]
[1747662036673,1.65200872,102940.0,102930.0,0.00014422]
[1747662036934,1.66200872,102940.0,102930.0,0.00014422]
[1747662037378,1.32199503,102940.0,102930.0,0.00014422]
[1747662037593,1.75931812,102940.0,102930.0,0.00014422]
[1747662037803,1.74931812,102940.0,102930.0,0.00014422]
[1747662038033,1.73931812,102940.0,102930.0,0.00014422]
[1747662038496,1.73731812,102940.0,102930.0,0.00014422]
[1747662038700,1.73631812,102940.0,102930.0,0.00014422]
[1747662038872,1.74431812,102940.0,102930.0,0.00014422]
[1747662039373,1.64700872,102940.0,102930.0,0.00014422]
[1747662042321,0.22833998,102900.0,102890.0,0.10932004]
[1747662042573,0.22833998,102900.0,102890.0,0.11539199]
[1747662042574,0.32564938,102900.0,102890.0,0.11539199]
[1747662042991,0.32564938,102900.0,102890.0,0.12211577]
[1747662043237,1.02044938,102900.0,102890.0,0.12211577]
[1747662043683,1.03035946,102900.0,102890.0,0.12311581]
[1747662043912,1.03035946,102900.0,102890.0,0.31749816]
[1747662044105,1.03035946,102900.0,102890.0,0.11704382]
[1747662044336,1.03035946,102900.0,102890.0,0.04479576]
[1747662044541,1.01557315,102900.0,102890.0,0.01579576]
[1747662045151,0.67555946,102900.0,102890.0,0.00907198]
[1747662046613,0.67555946,102900.0,102890.0,0.003]
[1747662046826,0.67555946,102900.0,102890.0,0.04027234]
[1747662047898,1.01557315,102900.0,102890.0,0.00907234]
[1747662048335,1.44418684,102900.0,102890.0,0.00907234]
[1747662048532,1.44418684,102900.0,102890.0,0.003]
[1747662048911,1.10417315,102900.0,102890.0,0.003]
[1747662049115,1.44418684,102900.0,102890.0,0.003]
[1747662049530,1.10417315,102900.0,102890.0,0.003]
[1747662049729,1.10417315,102900.0,102890.0,0.002]
[1747662050104,1.10617315,102900.0,102890.0,0.002]
[1747662050323,0.55864212,102890.0,102880.0,2.505931]
[1747662050533,0.99596521,102890.0,102880.0,2.50607524]
[1747662051181,1.07076521,102890.0,102880.0,2.50607524]
[1747662051390,1.08636521,102890.0,102880.0,2.50607524]
[1747662052863,1.31402521,102890.0,102880.0,2.50607524]
[1747662054600,0.65595152,102890.0,102880.0,2.50607524]
[1747662054816,0.3111295,102890.0,102880.0,2.53767524]
[1747662055058,0.2138201,102890.0,102880.0,2.74179654]
[1747662055283,0.20410127,102890.0,102880.0,2.53767524]
[1747662055717,0.21864212,102890.0,102880.0,2.53767524]
[1747662056128,0.21864212,102890.0,102880.0,2.73207648]
[1747662056341,0.21864212,102890.0,102880.0,2.74179644]
[1747662056896,0.03397841,102890.0,102880.0,2.74179644]
[1747662057124,0.00971694,102910.0,102900.0,0.21379922]
[1747662057343,0.2234953,102910.0,102900.0,0.21379969]
[1747662057550,0.00971581,102920.0,102910.0,0.21377873]
[1747662057760,0.0291478,102920.0,102910.0,0.26461233]